fUSD/lending_fUSD_20240408
["ID","MTS","AMOUNT","RATE_DAILY","PERIOD"]
[321873111,1712579453659,-837.87520516,0.0002878,2]
[321873113,1712579453669,-837.87520516,0.0002878,2]
[321873115,1712579453679,-837.87520516,0.0002878,2]
[321873117,1712579453689,-837.87520516,0.0002878,2]
[321873119,1712579453699,-837.87520516,0.0002878,2]
[321873121,1712579453710,-837.87520516,0.0002878,2]
[321873123,1712579453720,-837.87520516,0.0002878,2]
[321873125,1712579453731,-837.87520516,0.0002878,2]
[321873127,1712579453742,-837.87520516,0.0002878,2]
[321873129,1712579453752,-837.87520516,0.0002878,2]
[321873131,1712579453764,-837.87520516,0.0002878,2]
[321873133,1712579453773,-837.87520516,0.0002878,2]
[321873135,1712579453785,-151.0,0.0002878,7]
[321873137,1712579453796,-837.87520516,0.0002878,2]
[321873139,1712579453807,-837.87520516,0.0002878,2]
[321873141,1712579453817,-837.87520516,0.0002878,2]
[321873143,1712579453829,-837.87520516,0.0002878,2]
[321873145,1712579453839,-837.87520516,0.0002878,2]
[321873147,1712579453849,-838.37,0.0002878,2]
[321873149,1712579453864,-3351.57582063,0.0002878,2]
[321873151,1712579453873,-3351.57582063,0.0002878,2]
[321873153,1712579453884,-3351.57582063,0.0002878,2]
[321873155,1712579453894,-3351.57582063,0.0002878,2]
[321873157,1712579453906,-151.0,0.0002878,7]
[321873159,1712579453916,-274.01614,0.0002878,7]
[321873161,1712579453927,-274.01614,0.0002878,7]
[321873163,1712579453937,-604.62017021,0.0002878,2]
[321873165,1712579453947,-604.62017021,0.0002878,2]
[321873167,1712579453958,-604.62017021,0.0002878,2]
[321873169,1712579453968,-604.62017021,0.0002878,2]
[321873171,1712579453977,-604.62017021,0.0002878,2]
[321873173,1712579453987,-604.62017021,0.0002878,2]
[321873175,1712579453997,-604.62017021,0.0002878,2]
[321873177,1712579454006,-604.62017021,0.0002878,2]
[321873179,1712579454016,-604.62017021,0.0002878,2]
[321873181,1712579454025,-207.87886015,0.0002878,4]
[321873183,1712579454034,-604.62017021,0.0002878,2]
[321873185,1712579454043,-604.62017021,0.0002878,2]
[321873187,1712579454052,-604.62017021,0.0002878,2]
[321873189,1712579454061,-604.62017021,0.0002878,2]
[321873191,1712579454071,-604.62017021,0.0002878,2]
[321873193,1712579454080,-604.62017021,0.0002878,2]
[321873195,1712579454089,-604.62017021,0.0002878,2]
[321873197,1712579454098,-604.62017021,0.0002878,2]
[321873199,1712579454108,-604.62017021,0.0002878,2]
[321873201,1712579454117,-604.62017021,0.0002878,2]
[321873203,1712579454126,-605.12,0.0002878,2]
[321873205,1712579454135,-2418.55568083,0.0002878,2]
[321873207,1712579454144,-2418.55568083,0.0002878,2]
[321873209,1712579454153,-2418.55568083,0.0002878,2]
[321873211,1712579454162,-2418.55568083,0.0002878,2]
[321873213,1712579454171,-586.77026593,0.0002878,15]
[321873215,1712579454181,-152.96048615,0.0002878,2]
[321873217,1712579454190,-152.96048615,0.0002878,2]
[321873219,1712579454199,-152.96048615,0.0002878,2]
[321873221,1712579454209,-152.96048615,0.0002878,2]
[321873223,1712579454218,-152.96048615,0.0002878,2]
[321873225,1712579454227,-152.96048615,0.0002878,2]
[321873227,1712579454236,-152.96048615,0.0002878,2]
[321873229,1712579454246,-152.96048615,0.0002878,2]
[321873231,1712579454254,-152.96048615,0.0002878,2]
[321873233,1712579454264,-152.96048615,0.0002878,2]
[321873235,1712579454273,-152.96048615,0.0002878,2]
[321873237,1712579454282,-152.96048615,0.0002878,2]
[321873239,1712579454292,-152.96048615,0.0002878,2]
[321873241,1712579454301,-152.96048615,0.0002878,2]
[321873243,1712579454310,-152.96048615,0.0002878,2]
[321873245,1712579454320,-153.46,0.0002878,2]
[321873247,1712579454329,-489.54855569,0.0002878,2]
[321873249,1712579454338,-489.54855569,0.0002878,2]
[321873251,1712579454347,-489.54855569,0.0002878,2]
[321873253,1712579454356,-489.54855569,0.0002878,2]
[321873255,1712579454365,-794.69766313,0.0002878,2]
[321873258,1712579454386,-794.69766313,0.0002878,2]
[321873261,1712579454403,-794.69766313,0.0002878,2]
[321873264,1712579454421,-794.69766313,0.0002878,2]
[321873268,1712579454441,-794.69766313,0.0002878,2]
[321873270,1712579454457,-794.69766313,0.0002878,2]
[321873273,1712579454474,-794.69766313,0.0002878,2]
[321873275,1712579454490,-794.69766313,0.0002878,2]
[321873276,1712579454507,-794.69766313,0.0002878,2]
[321873277,1712579454527,-794.69766313,0.0002878,2]
[321873278,1712579454543,-794.69766313,0.0002878,2]
[321873280,1712579454559,-794.69766313,0.0002878,2]
[321873283,1712579454578,-794.69766313,0.0002878,2]
[321873286,1712579454597,-794.69766313,0.0002878,2]
[321873289,1712579454608,-794.69766313,0.0002878,2]
[321873291,1712579454625,-794.69766313,0.0002878,2]
[321873294,1712579454642,-794.69766313,0.0002878,2]
[321873297,1712579454655,-794.69766313,0.0002878,2]
[321873299,1712579454670,-794.69766313,0.0002878,2]
[321873302,1712579454684,-795.19,0.0002878,2]
[321873304,1712579454699,-2802.70145154,0.0002878,2]
[321873307,1712579454715,-3178.86565252,0.0002878,2]
[321873309,1712579454731,-3178.86565252,0.0002878,2]
[321873312,1712579454746,-3178.86565252,0.0002878,2]
[321873315,1712579454762,-3178.86565252,0.0002878,2]
[321873317,1712579454778,-151.0,0.0002878,7]
[321873320,1712579454793,-150.0,0.000288,2]
[321873323,1712579454815,-187.0,0.000288,13]
[321873326,1712579454831,-393.0,0.000288,2]
[321873329,1712579454846,-200.0,0.000288,2]
[321873331,1712579454863,-150.0,0.000288,2]
[321873334,1712579454877,-2266.227531,0.000288,2]
[321873337,1712579454894,-275.5,0.000288,2]
[321873339,1712579454910,-773.906713,0.000288,2]
[321873342,1712579454926,-406.620089,0.000288,2]
[321873345,1712579454941,-151.0,0.00028801,7]
[321873347,1712579454956,-150.5,0.00028829,15]
[321873350,1712579454973,-150.5,0.00028839,15]
[321873353,1712579454988,-300.23979,0.00028842,7]
[321873355,1712579455002,-300.23979,0.00028842,7]
[321873358,1712579455018,-151.807366,0.00028842,7]
[321873360,1712579455033,-151.0,0.00028842,7]
[321873363,1712579455048,-151.0,0.00028842,7]
[321873366,1712579455064,-151.0,0.00028842,7]
[321873368,1712579455079,-2000.0,0.00028848,2]
[321873371,1712579455094,-200.0,0.00028848,2]
[321873374,1712579455110,-4094.19745766,0.00028848,2]
[321873376,1712579455125,-150.5,0.00028849,15]
[321873380,1712579455149,-254.15469957,0.0002885,2]
[321873383,1712579455173,-4570.53799336,0.00028852,2]
[321873386,1712579455194,-388.97370236,0.00028854,2]
[321873389,1712579455217,-169.88260382,0.00028855,2]
[321873393,1712579455237,-373.25788922,0.00028856,2]
[321873396,1712579455258,-245.038182,0.00028859,7]
[321873398,1712579455276,-245.038182,0.00028859,7]
[321873399,1712579455293,-151.0,0.00028859,7]
[321873400,1712579455309,-206.720845,0.00028859,7]
[321873402,1712579455325,-151.0,0.00028859,7]
[321873403,1712579455342,-151.0,0.00028859,7]
[321873404,1712579455359,-300.23979,0.00028859,7]
[321873405,1712579455375,-158.31221,0.00028859,7]
[321873406,1712579455391,-300.23979,0.00028859,7]
[321873407,1712579455406,-151.0,0.00028859,7]
[321873408,1712579455422,-151.0,0.00028859,7]
[321873409,1712579455437,-151.0,0.00028859,7]
[321873410,1712579455452,-151.0,0.00028859,7]
[321873411,1712579455470,-155.378645,0.00028859,7]
[321873412,1712579455484,-335.337147,0.00028859,7]
[321873414,1712579455499,-151.0,0.00028859,7]
[321873415,1712579455514,-155.378645,0.00028859,7]
[321873416,1712579455530,-335.337147,0.00028859,7]
[321873417,1712579455545,-151.0,0.00028859,7]
[321873418,1712579455561,-151.0,0.00028859,7]
[321873419,1712579455577,-594.834004,0.00028859,7]
[321873420,1712579455591,-594.834004,0.00028859,7]
[321873421,1712579455606,-151.0,0.00028859,7]
[321873422,1712579455621,-151.0,0.00028859,7]
[321873423,1712579455637,-294.717359,0.00028859,7]
[321873424,1712579455652,-151.0,0.00028859,7]
[321873425,1712579455667,-294.717359,0.00028859,7]
[321873426,1712579455681,-151.0,0.00028859,7]
[321873427,1712579455697,-151.0,0.00028859,7]
[321873428,1712579455712,-349.303857,0.00028859,7]
[321873429,1712579455728,-349.303857,0.00028859,7]
[321873430,1712579455742,-1004453.8798809,0.0002886,7]
[321873443,1712579456793,-146974.91024317,0.0002886,7]
[321873444,1712579456803,-151.0,0.0002886,7]
[321873445,1712579456813,-151.0,0.0002886,7]
[321873446,1712579456822,-151.0,0.0002886,7]
[321873447,1712579456831,-151.0,0.0002886,7]
[321873448,1712579456841,-151.0,0.0002886,7]
[321873449,1712579456850,-151.0,0.0002886,7]
[321873450,1712579456860,-151.0,0.0002886,7]
[321873451,1712579456870,-151.0,0.0002886,7]
[321873452,1712579456879,-151.0,0.0002886,7]
[321873453,1712579456891,-171.31327,0.0002886,7]
[321873454,1712579456900,-151.0,0.0002886,7]
[321873455,1712579456909,-151.0,0.0002886,7]
[321873456,1712579456918,-151.0,0.0002886,7]
[321873457,1712579456927,-151.0,0.0002886,7]
[321873458,1712579456936,-245.038182,0.0002886,7]
[321873459,1712579456945,-245.038182,0.0002886,7]
[321873460,1712579456955,-151.0,0.0002886,7]
[321873461,1712579456965,-151.0,0.0002886,7]
[321873462,1712579456975,-242.076003,0.0002886,7]
[321873463,1712579456984,-300.23979,0.0002886,7]
[321873464,1712579456993,-300.23979,0.0002886,7]
[321873465,1712579457003,-151.0,0.0002886,7]
[321873466,1712579457012,-151.0,0.0002886,7]
[321873467,1712579457021,-151.0,0.0002886,7]
[321873468,1712579457030,-151.0,0.0002886,7]
[321873469,1712579457039,-155.378645,0.0002886,7]
[321873470,1712579457048,-335.337147,0.0002886,7]
[321873471,1712579457058,-151.0,0.0002886,7]
[321873472,1712579457067,-155.378645,0.0002886,7]
[321873473,1712579457076,-335.337147,0.0002886,7]
[321873474,1712579457086,-151.0,0.0002886,7]
[321873475,1712579457095,-151.0,0.0002886,7]
[321873476,1712579457105,-594.834004,0.0002886,7]
[321873477,1712579457114,-594.834004,0.0002886,7]
[321873478,1712579457124,-151.0,0.0002886,7]
[321873479,1712579457133,-165.086576,0.0002886,7]
[321873480,1712579457143,-294.717359,0.0002886,7]
[321873481,1712579457152,-151.0,0.0002886,7]
[321873482,1712579457165,-294.717359,0.0002886,7]
[321873483,1712579457175,-151.0,0.0002886,7]
[321873484,1712579457184,-151.0,0.0002886,7]
[321873485,1712579457193,-349.303857,0.0002886,7]
[321873486,1712579457202,-349.303857,0.0002886,7]
[321873487,1712579457212,-151.0,0.0002886,7]
[321873488,1712579457221,-151.0,0.0002886,7]
[321873489,1712579457231,-151.0,0.0002886,7]
[321873490,1712579457240,-151.0,0.0002886,7]
[321873491,1712579457250,-151.0,0.0002886,7]
[321873492,1712579457259,-161.843637,0.0002886,7]
[321873493,1712579457270,-151.0,0.0002886,7]
[321873494,1712579457279,-151.0,0.0002886,7]
[321873495,1712579457288,-151.0,0.0002886,7]
[321873496,1712579457298,-151.0,0.0002886,7]
[321873497,1712579457307,-151.0,0.0002886,7]
[321873498,1712579457316,-151.0,0.0002886,7]
[321873499,1712579457326,-151.0,0.0002886,7]
[321873500,1712579457335,-151.0,0.0002886,7]
[321873501,1712579457345,-151.0,0.0002886,7]
[321873502,1712579457354,-151.0,0.0002886,7]
[321873503,1712579457364,-76407.4677414,0.0002886,2]
[321873504,1712579457373,-58003.4616644,0.0002886,2]
[321873505,1712579457382,-39599.4555874,0.0002886,2]
[321873506,1712579457392,-21195.4495104,0.0002886,2]
[321873507,1712579457401,-151.0,0.0002886,7]
[321873508,1712579457411,-151.0,0.0002886,7]
[321873509,1712579457420,-241.174551,0.0002886,7]
[321873510,1712579457429,-241.174551,0.0002886,7]
[321873511,1712579457439,-151.0,0.0002886,7]
[321873512,1712579457448,-151.0,0.0002886,7]
[321873513,1712579457458,-241.174551,0.0002886,7]
[321873514,1712579457467,-241.174551,0.0002886,7]
[321873515,1712579457477,-261.511677,0.0002886,7]
[321873516,1712579457486,-1070.708154,0.0002886,7]
[321873517,1712579457495,-261.511677,0.0002886,7]
[321873518,1712579457504,-1070.708154,0.0002886,7]
[321873519,1712579457513,-1070.708154,0.0002886,7]
[321873520,1712579457522,-1070.708154,0.0002886,7]
[321873521,1712579457532,-261.511677,0.0002886,7]
[321873522,1712579457541,-261.511677,0.0002886,7]
[321873523,1712579457551,-151.0,0.0002886,7]
[321873524,1712579457560,-151.0,0.0002886,7]
[321873525,1712579457571,-2827.151726,0.0002886,7]
[321873526,1712579457580,-2827.151726,0.0002886,7]
[321873527,1712579457594,-2827.151726,0.0002886,7]
[321873528,1712579457609,-2827.151726,0.0002886,7]
[321873529,1712579457619,-308.134806,0.0002886,7]
[321873530,1712579457628,-308.134806,0.0002886,7]
[321873531,1712579457638,-151.0,0.0002886,7]
[321873532,1712579457648,-308.134806,0.0002886,7]
[321873533,1712579457657,-308.134806,0.0002886,7]
[321873534,1712579457666,-293.989647,0.0002886,7]
[321873535,1712579457676,-293.989647,0.0002886,7]
[321873536,1712579457686,-293.989647,0.0002886,7]
[321873537,1712579457695,-1669.646002,0.0002886,7]
[321873538,1712579457705,-293.989647,0.0002886,7]
[321873539,1712579457715,-1669.646002,0.0002886,7]
[321873540,1712579457725,-1669.646002,0.0002886,7]
[321873541,1712579457734,-1669.646002,0.0002886,7]
[321873542,1712579457745,-151.0,0.0002886,7]
[321873543,1712579457754,-151.0,0.0002886,7]
[321873544,1712579458013,-209.613032,0.0002886,7]
[321873545,1712579458027,-204.240774,0.0002886,7]
[321873546,1712579458037,-204.240774,0.0002886,7]
[321873547,1712579458047,-204.240774,0.0002886,7]
[321873548,1712579458057,-204.240774,0.0002886,7]
[321873549,1712579458067,-180.351674,0.0002886,7]
[321873550,1712579458077,-180.351674,0.0002886,7]
[321873551,1712579458086,-180.351674,0.0002886,7]
[321873552,1712579458095,-180.351674,0.0002886,7]
[321873553,1712579458105,-151.0,0.0002886,7]
[321873554,1712579458114,-151.0,0.0002886,7]
[321873555,1712579458123,-151.0,0.0002886,7]
[321873556,1712579458133,-151.0,0.0002886,7]
[321873557,1712579458143,-307.191411,0.0002886,7]
[321873558,1712579458153,-307.191411,0.0002886,7]
[321873559,1712579458164,-307.191411,0.0002886,7]
[321873560,1712579458173,-307.191411,0.0002886,7]
[321873561,1712579458183,-249.78538,0.0002886,7]
[321873562,1712579458193,-249.78538,0.0002886,7]
[321873563,1712579458202,-151.0,0.0002886,7]
[321873564,1712579458214,-151.0,0.0002886,7]
[321873565,1712579458224,-249.78538,0.0002886,7]
[321873566,1712579458235,-249.78538,0.0002886,7]
[321873567,1712579458245,-151.0,0.0002886,7]
[321873568,1712579458255,-151.0,0.0002886,7]
[321873569,1712579458265,-151.0,0.0002886,7]
[321873570,1712579458276,-151.0,0.0002886,7]
[321873571,1712579458286,-151.0,0.0002886,7]
[321873572,1712579458296,-151.0,0.0002886,7]
[321873573,1712579458306,-151.0,0.0002886,7]
[321873574,1712579458316,-151.0,0.0002886,7]
[321873575,1712579458326,-151.0,0.0002886,7]
[321873576,1712579458336,-160.944689,0.0002886,7]
[321873577,1712579458346,-151.0,0.0002886,7]
[321873578,1712579458356,-160.944689,0.0002886,7]
[321873579,1712579458367,-161.158857,0.0002886,7]
[321873580,1712579458378,-160.944689,0.0002886,7]
[321873581,1712579458389,-160.944689,0.0002886,7]
[321873582,1712579458399,-152.676176,0.0002886,7]
[321873583,1712579458409,-152.676176,0.0002886,7]
[321873584,1712579458420,-508.554729,0.0002886,7]
[321873585,1712579458430,-508.554729,0.0002886,7]
[321873586,1712579458440,-152.676176,0.0002886,7]
[321873587,1712579458450,-152.676176,0.0002886,7]
[321873588,1712579458463,-508.554729,0.0002886,7]
[321873589,1712579458473,-508.554729,0.0002886,7]
[321873590,1712579458483,-192.935529,0.0002886,7]
[321873591,1712579458491,-192.935529,0.0002886,7]
[321873592,1712579458501,-1699.276069,0.0002886,7]
[321873593,1712579458511,-1699.276069,0.0002886,7]
[321873594,1712579458520,-192.935529,0.0002886,7]
[321873595,1712579458529,-192.935529,0.0002886,7]
[321873596,1712579458538,-1699.276069,0.0002886,7]
[321873597,1712579458548,-1699.276069,0.0002886,7]
[321873598,1712579458557,-151.0,0.0002886,7]
[321873599,1712579458567,-151.0,0.0002886,7]
[321873600,1712579458576,-6042.237038,0.0002886,7]
[321873601,1712579458586,-33322.7402654,0.0002886,2]
[321873602,1712579458596,-26684.9229327,0.0002886,2]
[321873603,1712579458607,-6042.237038,0.0002886,7]
[321873604,1712579458617,-20047.1055999,0.0002886,2]
[321873605,1712579458628,-13409.2882671,0.0002886,2]
[321873606,1712579458638,-6042.237038,0.0002886,7]
[321873607,1712579458648,-6042.237038,0.0002886,7]
[321873608,1712579458658,-466.22056,0.0002886,7]
[321873609,1712579458669,-466.22056,0.0002886,7]
[321873610,1712579458680,-466.22056,0.0002886,7]
[321873611,1712579458691,-466.22056,0.0002886,7]
[321873612,1712579458701,-151.0,0.0002886,7]
[321873613,1712579458714,-151.0,0.0002886,7]
[321873614,1712579458724,-151.0,0.0002886,7]
[321873615,1712579458735,-151.0,0.0002886,7]
[321873616,1712579458746,-166.141357,0.0002886,7]
[321873617,1712579458757,-274.01614,0.0002886,7]
[321873618,1712579458768,-274.01614,0.0002886,7]
[321873619,1712579458779,-274.01614,0.0002886,7]
[321873620,1712579458790,-274.01614,0.0002886,7]
[321873621,1712579458800,-24052.7862221,0.0002886,2]
[321873622,1712579458811,-19261.5235584,0.0002886,2]
[321873623,1712579458822,-14470.2608946,0.0002886,2]
[321873624,1712579458833,-9678.9982309,0.0002886,2]
[321873625,1712579458843,-256.932872,0.0002886,7]
[321873626,1712579458854,-256.932872,0.0002886,7]
[321873627,1712579458863,-256.932872,0.0002886,7]
[321873628,1712579458873,-256.932872,0.0002886,7]
[321873629,1712579458883,-151.0,0.0002886,7]
[321873630,1712579458898,-151.0,0.0002886,7]
[321873631,1712579458908,-151.0,0.0002886,7]
[321873632,1712579458918,-151.0,0.0002886,7]
[321873633,1712579458929,-170.04449,0.0002886,7]
[321873634,1712579458940,-170.04449,0.0002886,7]
[321873635,1712579458951,-151.0,0.0002886,7]
[321873636,1712579458967,-151.0,0.0002886,7]
[321873637,1712579458978,-170.04449,0.0002886,7]
[321873638,1712579458989,-170.04449,0.0002886,7]
[321873639,1712579459000,-2432.138283,0.0002886,7]
[321873640,1712579459009,-2432.138283,0.0002886,7]
[321873641,1712579459019,-2432.138283,0.0002886,7]
[321873642,1712579459030,-2432.138283,0.0002886,7]
[321873643,1712579459039,-151.0,0.0002886,7]
[321873644,1712579459049,-151.0,0.0002886,7]
[321873645,1712579459060,-151.0,0.0002886,7]
[321873646,1712579459069,-151.0,0.0002886,7]
[321873647,1712579459080,-293.635799,0.0002886,7]
[321873648,1712579459090,-702.292882,0.0002886,7]
[321873649,1712579459100,-702.292882,0.0002886,7]
[321873650,1712579459109,-153.511054,0.0002886,7]
[321873651,1712579459119,-702.292882,0.0002886,7]
[321873652,1712579459128,-702.292882,0.0002886,7]
[321873653,1712579459137,-50250.96895466,0.00028861,2]
[321873654,1712579459147,-33713.82153526,0.0002887,2]
[321873655,1712579459157,-151.0,0.0002887,7]
[321873656,1712579459167,-151.0,0.0002887,7]
[321873657,1712579459177,-167.914345,0.0002887,7]
[321873658,1712579459187,-151.0,0.0002887,7]
[321873659,1712579459197,-246.694852,0.0002887,7]
[321873660,1712579459212,-172.141125,0.0002887,7]
[321873661,1712579459224,-245.038182,0.0002887,7]
[321873662,1712579459235,-245.038182,0.0002887,7]
[321873663,1712579459246,-151.0,0.0002887,7]
[321873664,1712579459257,-151.0,0.0002887,7]
[321873665,1712579459268,-151.0,0.0002887,7]
[321873666,1712579459279,-155.378645,0.0002887,7]
[321873667,1712579459289,-335.337147,0.0002887,7]
[321873668,1712579459299,-151.0,0.0002887,7]
[321873669,1712579459309,-155.378645,0.0002887,7]
[321873670,1712579459320,-335.337147,0.0002887,7]
[321873671,1712579459330,-151.0,0.0002887,7]
[321873672,1712579459340,-151.0,0.0002887,7]
[321873673,1712579459351,-594.834004,0.0002887,7]
[321873674,1712579459361,-594.834004,0.0002887,7]
[321873675,1712579459371,-151.0,0.0002887,7]
[321873676,1712579459381,-294.717359,0.0002887,7]
[321873677,1712579459392,-151.0,0.0002887,7]
[321873678,1712579459402,-294.717359,0.0002887,7]
[321873679,1712579459413,-151.0,0.0002887,7]
[321873680,1712579459422,-151.0,0.0002887,7]
[321873681,1712579459432,-349.303857,0.0002887,7]
[321873682,1712579459442,-349.303857,0.0002887,7]
[321873683,1712579459452,-151.0,0.0002887,7]
[321873684,1712579459465,-151.0,0.0002887,7]
[321873685,1712579459475,-151.0,0.0002887,7]
[321873686,1712579459485,-151.0,0.0002887,7]
[321873687,1712579459494,-151.0,0.0002887,7]
[321873688,1712579459504,-151.0,0.0002887,7]
[321873689,1712579459513,-151.0,0.0002887,7]
[321873690,1712579459522,-241.174551,0.0002887,7]
[321873691,1712579459532,-151.0,0.0002887,7]
[321873692,1712579459541,-241.174551,0.0002887,7]
[321873693,1712579459550,-1070.708154,0.0002887,7]
[321873694,1712579459559,-261.511677,0.0002887,7]
[321873695,1712579459569,-1070.708154,0.0002887,7]
[321873696,1712579459578,-261.511677,0.0002887,7]
[321873697,1712579459587,-1669.646002,0.0002887,7]
[321873698,1712579459597,-1669.646002,0.0002887,7]
[321873699,1712579459609,-160.944689,0.0002887,7]
[321873700,1712579459620,-160.944689,0.0002887,7]
[321873701,1712579459630,-152.676176,0.0002887,7]
[321873702,1712579459640,-508.554729,0.0002887,7]
[321873703,1712579459650,-152.676176,0.0002887,7]
[321873704,1712579459660,-508.554729,0.0002887,7]
[321873705,1712579459671,-192.935529,0.0002887,7]
[321873706,1712579459680,-1699.276069,0.0002887,7]
[321873707,1712579459690,-192.935529,0.0002887,7]
[321873708,1712579459701,-1699.276069,0.0002887,7]
[321873709,1712579459713,-466.22056,0.0002887,7]
[321873710,1712579459722,-466.22056,0.0002887,7]
[321873711,1712579459731,-256.932872,0.0002887,7]
[321873712,1712579459741,-256.932872,0.0002887,7]
[321873713,1712579459752,-151.0,0.0002887,7]
[321873714,1712579459762,-151.0,0.0002887,7]
[321873715,1712579459771,-170.04449,0.0002887,7]
[321873716,1712579459781,-151.0,0.0002887,7]
[321873717,1712579459790,-170.04449,0.0002887,7]
[321873718,1712579459799,-2432.138283,0.0002887,7]
[321873719,1712579459809,-2432.138283,0.0002887,7]
[321873720,1712579459819,-151.0,0.0002887,7]
[321873721,1712579459829,-151.0,0.0002887,7]
[321873722,1712579459839,-702.292882,0.0002887,7]
[321873723,1712579459850,-702.292882,0.0002887,7]
[321873724,1712579459863,-151.0,0.00028872,7]
[321873725,1712579459875,-300.23979,0.00028872,7]
[321873726,1712579459885,-300.23979,0.00028872,7]
[321873727,1712579459895,-151.0,0.00028872,7]
[321873728,1712579459905,-151.0,0.00028872,7]
[321873729,1712579459915,-151.0,0.00028872,7]
[321873730,1712579459925,-150.7333441,0.00028872,2]
[321873731,1712579459934,-180.880013,0.00028872,2]
[321873732,1712579459944,-243.4086544,0.00028872,2]
[321873733,1712579459954,-177.7462821,0.00028872,2]
[321873734,1712579459964,-5896.8375897,0.00028872,2]
[321873735,1712579459973,-282.60423576,0.00028876,2]
[321873736,1712579459983,-598.95650689,0.00028876,2]
[321873737,1712579459992,-59037.33327895,0.00028876,4]
[321873738,1712579460002,-151.0,0.00028876,7]
[321873739,1712579460011,-2827.151726,0.00028876,7]
[321873740,1712579460021,-2827.151726,0.00028876,7]
[321873741,1712579460030,-308.134806,0.00028876,7]
[321873742,1712579460039,-308.134806,0.00028876,7]
[321873743,1712579460049,-293.989647,0.00028876,7]
[321873744,1712579460058,-293.989647,0.00028876,7]
[321873745,1712579460068,-151.0,0.00028876,7]
[321873746,1712579460077,-204.240774,0.00028876,7]
[321873747,1712579460087,-204.240774,0.00028876,7]
[321873748,1712579460096,-180.351674,0.00028876,7]
[321873749,1712579460106,-180.351674,0.00028876,7]
[321873750,1712579460115,-151.0,0.00028876,7]
[321873751,1712579460125,-151.0,0.00028876,7]
[321873752,1712579460135,-307.191411,0.00028876,7]
[321873753,1712579460144,-307.191411,0.00028876,7]
[321873754,1712579460154,-249.78538,0.00028876,7]
[321873755,1712579460164,-151.0,0.00028876,7]
[321873756,1712579460174,-249.78538,0.00028876,7]
[321873757,1712579460184,-151.0,0.00028876,7]
[321873758,1712579460193,-151.0,0.00028876,7]
[321873759,1712579460202,-151.0,0.00028876,7]
[321873760,1712579460214,-151.0,0.00028876,7]
[321873761,1712579460224,-256.46017,0.00028876,7]
[321873762,1712579460234,-151.0,0.00028876,7]
[321873763,1712579460244,-6042.237038,0.00028876,7]
[321873764,1712579460254,-6042.237038,0.00028876,7]
[321873765,1712579460264,-151.0,0.00028876,7]
[321873766,1712579460274,-151.0,0.00028876,7]
[321873767,1712579460284,-274.01614,0.00028876,7]
[321873768,1712579460293,-274.01614,0.00028876,7]
[321873769,1712579460303,-155.0,0.00028877,2]
[321873770,1712579460312,-260.47354147,0.00028878,2]
[321873771,1712579460321,-155.2401728,0.00028878,2]
[321873772,1712579460331,-969.46683418,0.00028878,2]
[321873773,1712579460341,-462.094188,0.00028878,2]
[321873774,1712579460350,-400.0,0.00028878,2]
[321873775,1712579460360,-1808.56889921,0.00028878,2]
[321873776,1712579460370,-3202.47597328,0.00028878,2]
[321873777,1712579460380,-500.0,0.00028878,2]
[321873778,1712579460389,-155.58493034,0.00028878,2]
[321873779,1712579460399,-156.84885123,0.00028878,2]
[321873780,1712579460409,-661.63817277,0.00028878,2]
[321873781,1712579460419,-643.63898191,0.00028878,2]
[321873782,1712579460429,-195.516325,0.00028878,2]
[321873783,1712579460438,-162.39545897,0.00028878,2]
[321873784,1712579460447,-14267.84925705,0.00028878,2]
[321873785,1712579460456,-880.45661014,0.00028878,2]